bitfinex/quotes_ETHUSD_20241124
["timestamp","ask_amount","ask_price","bid_price","bid_amount"]
[1732464185083,3.14447226,3289.4,3289.3,2.487214]
[1732464185613,3.03877,3290.9,3289.3,2.487214]
[1732464185614,3.14447226,3290.5,3290.4,1.82348]
[1732464185916,3.14447226,3290.5,3289.3,3.037214]
[1732464185917,0.1,3290.1,3289.9,1.82373]
[1732464186221,0.1,3290.1,3289.3,0.364824]
[1732464186222,0.1,3289.7,3289.3,0.364824]
[1732464186523,3.14447226,3289.4,3289.3,2.0429824]
[1732464186816,3.14447226,3289.4,3289.3,1.82409]
[1732464187222,3.14447226,3289.4,3289.1,1.82415]
[1732464187403,3.14447226,3289.4,3289.3,1.82409]
[1732464187815,0.1,3289.3,3289.0,1.82425]
[1732464187998,0.2,3289.3,3288.8,1.82432]
[1732464188547,3.14447226,3289.4,3289.2,1.82415]
[1732464188723,3.14447226,3289.4,3289.3,2.006505]
[1732464192027,0.1,3290.2,3290.1,1.82365]
[1732464192233,3.14447226,3290.5,3290.4,1.82348]
[1732464192424,3.14447226,3290.5,3290.4,2.188182]
[1732464192733,3.03759,3292.1,3290.4,2.188182]
[1732464192734,3.24447226,3291.6,3291.5,1.82287]
[1732464192942,3.14447226,3291.6,3291.5,1.82287]
[1732464193141,3.14447226,3291.6,3291.5,2.187455]
[1732464193587,3.14447226,3292.5,3291.6,3.55]
[1732464193791,3.14447226,3292.5,3292.4,1.82237]
[1732464194334,3.14447226,3292.5,3292.4,2.2518663]
[1732464194501,3.14447226,3292.5,3292.4,1.82237]
[1732464195049,0.1,3292.4,3291.4,0.2983]
[1732464195254,4.40295232,3292.5,3292.4,1.82237]
[1732464195457,3.14447226,3292.5,3292.4,1.82237]
[1732464195969,3.14447226,3292.5,3292.2,2.12077]
[1732464196108,3.14447226,3292.5,3291.1,1.82307]
[1732464196109,0.1,3292.3,3291.8,1.82269]
[1732464196316,3.14447226,3292.5,3292.2,1.82248]
[1732464196536,3.14447226,3292.5,3292.4,1.82237]
[1732464196727,3.14447226,3292.5,3292.3,1.82241]
[1732464197168,3.14447226,3292.5,3291.8,1.8227]
[1732464197375,0.1,3294.3,3293.8,1.8216]
[1732464197649,0.1,3294.1,3293.8,1.82159]
[1732464197813,0.1,3294.1,3293.0,0.55]
[1732464198015,0.1,3294.1,3293.5,1.82175]
[1732464198213,0.1,3294.3,3293.1,0.52591939]
[1732464198410,0.1,3294.1,3293.6,1.82166]
[1732464199472,3.14447226,3294.6,3293.4,1.8218]
[1732464199473,0.1,3294.4,3293.4,1.8218]
[1732464199756,3.14447226,3293.5,3292.9,1.82205]
[1732464199955,3.14447226,3293.5,3292.5,3.0]
[1732464200116,3.14447226,3293.5,3293.4,1.82182]
[1732464201318,0.1,3294.5,3293.8,1.51798]
[1732464201538,0.1,3294.5,3293.9,1.51795]
[1732464201880,4.24003193,3295.4,3293.9,1.51795]
[1732464201881,1.75,3296.0,3295.0,0.2983]
[1732464202019,0.1,3295.6,3295.2,1.51735]
[1732464202414,0.1,3295.6,3295.0,0.2983]
[1732464202615,0.1,3295.6,3295.3,1.51731]
[1732464202842,1.75,3296.0,3295.3,0.151731]
[1732464203052,1.75,3296.0,3295.0,0.2983]
[1732464203053,1.75,3296.0,3295.8,1.51707]
[1732464203252,1.75,3296.0,3295.6,1.51713]
[1732464203463,1.75,3296.0,3295.9,1.51703]
[1732464203629,1.75,3296.0,3295.9,2.06703]
[1732464203837,1.7,3296.0,3295.9,2.06703]
[1732464204355,1.7,3296.0,3295.9,2.36533]
[1732464204655,0.66048707,3296.0,3295.9,6.053575]
[1732464204858,0.66048707,3296.0,3295.9,2.36533]
[1732464205476,0.38432755,3296.0,3295.9,2.89124939]
[1732464205756,3.14447226,3297.3,3296.4,2.0668]
[1732464205955,3.14447226,3297.3,3296.4,2.59271939]
[1732464206265,3.24447226,3297.3,3296.4,5.0668]
[1732464206420,0.1,3296.9,3296.0,0.55]
[1732464206624,3.03298,3297.1,3295.9,0.36765023]
[1732464206625,0.1,3296.7,3295.9,0.36765023]
[1732464206859,0.1,3296.7,3295.9,1.51703]
[1732464207081,0.1,3296.7,3295.7,3.0]
[1732464207365,0.249082,3296.5,3295.4,0.2983]
[1732464207526,0.249082,3296.5,3295.9,1.51702]
[1732464207725,0.149082,3296.5,3296.3,1.51684]
[1732464207929,0.1,3296.4,3295.8,1.51703]
[1732464208139,0.1,3296.0,3295.1,1.5174]
[1732464208338,0.1,3296.0,3295.1,0.18157]
[1732464208547,3.14447226,3296.2,3296.0,1.51695]
[1732464208737,3.14447226,3296.2,3296.1,1.51694]
[1732464209461,0.149082,3296.5,3296.4,1.5168]
[1732464210051,0.149082,3296.5,3296.4,2.0668]
[1732464210445,0.149082,3296.5,3296.4,2.54701939]
[1732464210641,0.149082,3296.5,3296.4,5.54701939]
[1732464210882,0.149082,3296.5,3296.4,6.25340733]
[1732464211159,0.149082,3296.5,3296.4,2.0668]
[1732464211666,0.149082,3296.5,3296.4,5.54701939]
[1732464212153,0.149082,3296.5,3296.4,6.00737486]
[1732464212363,0.149082,3296.5,3296.4,5.54701939]
[1732464214367,2e-06,3296.5,3296.4,2.0668]
[1732464214676,0.1,3297.8,3297.4,1.51633]
[1732464214967,0.8511,3298.0,3297.6,1.51622]
[1732464215181,0.8511,3298.0,3297.4,1.98529923]
[1732464215182,0.7511,3298.0,3297.9,1.51611]
[1732464215332,0.8511,3298.0,3297.9,1.51611]
[1732464215538,0.7511,3298.0,3297.6,0.46896923]
[1732464215781,0.7511,3298.0,3297.9,1.51611]
[1732464215933,0.7511,3298.0,3297.9,1.819333]
[1732464216131,3.24447226,3298.1,3297.9,1.819333]
[1732464216132,3.14447226,3298.1,3298.0,1.51607]
[1732464216570,0.1,3298.3,3298.1,1.51598]
[1732464216884,0.1,3298.3,3298.1,1.74480622]
[1732464217170,0.1,3298.3,3298.2,1.51597]
[1732464217544,0.59718125,3298.6,3298.2,1.51597]
[1732464217745,0.59718125,3298.6,3298.4,1.51584]
[1732464217945,3.12888077,3298.7,3298.5,1.51584]
[1732464218145,3.22888077,3298.7,3298.2,1.51596]
[1732464218395,3.12888077,3298.7,3298.4,1.51588]
[1732464218691,3.12888077,3298.7,3298.3,0.151596]
[1732464218692,0.1,3298.5,3298.3,0.151596]
[1732464218906,0.1,3298.5,3298.2,1.51596]
[1732464218907,0.1,3298.4,3298.0,1.51606]
[1732464219051,3.12888077,3298.7,3298.1,1.51602]
[1732464219052,0.1,3298.3,3298.1,1.51602]
[1732464219252,0.1,3298.3,3298.1,1.516]
[1732464219464,0.1,3298.3,3298.2,1.51597]
[1732464219666,0.1,3298.6,3298.1,1.516]
[1732464219951,3.22888077,3298.7,3298.4,1.51588]
[1732464220153,3.22888077,3298.7,3298.4,1.682628]
[1732464220600,3.12888077,3298.7,3298.6,1.51579]
[1732464220890,0.1,3298.5,3298.4,1.682628]
[1732464221066,3.12888077,3298.7,3298.5,1.51583]
[1732464221264,0.1,3298.5,3298.4,1.51588]
[1732464221488,3.12888077,3298.7,3298.5,1.51583]
[1732464221993,3.12888077,3298.7,3298.6,1.51579]
[1732464223289,3.12888077,3298.7,3298.4,0.151588]
[1732464223501,3.12888077,3298.7,3298.0,1.51607]
[1732464223664,3.12888077,3298.7,3298.6,1.51579]
[1732464223868,3.12888077,3298.7,3298.0,0.55]
[1732464223869,3.12888077,3298.7,3298.4,1.51584]
[1732464224089,3.12888077,3298.7,3298.6,1.51579]
[1732464224266,3.12888077,3298.7,3298.6,1.818953]
[1732464228383,0.1,3299.3,3299.2,1.51551]
[1732464228899,0.61112085,3299.5,3299.4,1.51542]
[1732464229196,3.27796277,3299.8,3299.4,1.51542]
[1732464229511,3.02901,3301.4,3298.8,3.0]
[1732464229512,0.8635,3301.1,3299.6,0.2983]
[1732464229658,0.8635,3301.1,3300.7,1.51479]
[1732464229855,0.1,3300.9,3300.7,1.51479]
[1732464230164,0.1,3300.9,3300.8,1.51478]
[1732464230370,0.7635,3301.1,3301.0,1.51469]
[1732464230911,0.1,3300.9,3300.8,1.51478]
[1732464231055,0.7635,3301.1,3301.0,1.51469]
[1732464231401,0.1,3302.0,3301.9,1.51423]
[1732464231606,3.12888077,3302.4,3301.2,1.5146]
[1732464231904,3.12888077,3302.4,3302.3,1.51409]
[1732464232313,3.15658469,3302.4,3302.3,1.51409]
[1732464232509,3.15658469,3302.4,3302.0,3.0]
[1732464232681,3.15658469,3302.4,3302.0,1.51422]
[1732464232880,3.15658469,3302.4,3302.1,1.816999]
[1732464233098,0.1,3302.3,3302.1,0.302849]
[1732464233418,0.1,3302.3,3301.7,1.51435]
[1732464233419,0.1,3302.3,3301.6,3.0]
[1732464233708,0.1,3301.5,3300.8,0.2983]
[1732464233891,0.1,3301.5,3300.9,1.51473]
[1732464234091,0.03348059,3301.4,3300.9,1.51473]
[1732464234277,0.03348059,3301.4,3300.8,0.2983]
[1732464234611,0.1,3301.5,3300.8,0.2983]
[1732464234811,0.1,3301.5,3301.4,1.5145]
[1732464235170,0.1,3301.5,3301.1,3.0]
[1732464235404,0.1,3301.5,3301.1,1.5146]
[1732464235567,0.1,3301.5,3301.0,1.51468]
[1732464235775,0.1,3301.5,3301.1,1.666088]
[1732464235970,0.1,3301.5,3300.9,1.51473]
[1732464236309,3.12888077,3302.4,3300.8,0.2983]
[1732464236310,3.02819,3302.3,3300.8,0.2983]
[1732464236474,3.12888077,3301.3,3300.7,4.51479]
[1732464236669,3.12888077,3301.3,3300.5,1.5149]
[1732464236907,6.15800077,3301.3,3300.6,0.2288]
[1732464237109,6.15800077,3301.3,3300.1,1.5151]
[1732464237110,3.12888077,3301.3,3300.1,1.5151]
[1732464237311,3.12888077,3301.3,3300.2,0.15151]
[1732464237312,3.02945,3301.0,3300.2,0.15151]
[1732464237476,3.02939,3301.0,3300.2,0.15151]
[1732464237817,3.12888077,3301.3,3299.5,2.440012]
[1732464237818,3.02993,3300.4,3299.5,2.440012]
[1732464237975,0.59693729,3301.4,3299.5,1.51533]
[1732464237976,3.12888077,3300.2,3299.5,1.51533]
[1732464238306,3.12888077,3300.2,3299.1,0.7731]
[1732464238307,3.12888077,3300.2,3299.6,0.151533]
[1732464238507,0.60395297,3300.7,3299.2,1.51551]
[1732464238685,0.60395297,3300.7,3299.1,0.7731]
[1732464238686,6.15915077,3300.1,3299.3,1.51543]
[1732464238889,3.03041,3299.9,3299.4,0.151543]
[1732464239207,3.0303,3300.0,3299.2,1.51548]
[1732464239386,3.7938,3300.0,3299.2,1.51548]
[1732464239580,0.7635,3300.0,3299.3,0.151548]
[1732464239815,0.7635,3300.0,3298.3,0.7731]
[1732464239816,3.03065,3299.7,3298.3,0.7731]
[1732464240022,0.7635,3300.0,3299.0,1.5156]
[1732464240023,3.0304,3299.9,3299.0,1.5156]
[1732464240315,0.7635,3300.0,3299.3,1.51543]
[1732464240625,0.7635,3300.0,3298.5,0.2517903]
[1732464240782,0.7635,3300.0,3298.3,0.7731]
[1732464240982,3.12888077,3299.3,3298.3,0.7731]
[1732464241210,3.12888077,3299.3,3299.2,1.51551]
[1732464241616,4.53206557,3300.4,3299.9,1.51519]
[1732464241979,4.53206557,3300.4,3299.3,0.151551]
[1732464241980,4.53206557,3300.4,3299.8,1.51524]
[1732464242186,4.53206557,3300.4,3299.9,0.151524]
[1732464242390,3.92158077,3300.4,3300.0,1.51511]
[1732464242688,3.92158077,3300.4,3299.9,0.151524]
[1732464242689,3.12888077,3301.1,3300.5,1.51492]
[1732464242883,3.12888077,3301.1,3300.8,1.51477]
[1732464243113,3.12888077,3301.1,3300.9,1.817688]
[1732464243420,3.12888077,3301.1,3300.8,1.51475]
[1732464243667,3.12888077,3301.1,3300.3,3.8025]
[1732464243785,0.7927,3301.7,3300.9,3.0]
[1732464243994,0.7927,3301.7,3301.3,1.51452]
[1732464244319,0.7927,3301.7,3300.6,3.0]
[1732464244542,0.7927,3301.7,3301.4,1.51449]
[1732464244684,1.39892193,3302.1,3301.4,1.51449]
[1732464244897,1.39892193,3302.1,3301.6,1.51439]
[1732464245326,3.12888077,3302.2,3301.9,1.51427]
[1732464245536,3.12888077,3302.2,3302.1,1.51418]
[1732464246038,3.12888077,3302.2,3301.9,1.51424]
[1732464246697,3.12888077,3302.2,3302.1,1.51418]
[1732464246930,3.12888077,3302.2,3302.1,1.817022]
[1732464247305,0.925682,3303.1,3302.1,0.302842]
[1732464247513,0.925682,3303.1,3302.4,1.51404]
[1732464247712,0.03236196,3303.0,3302.4,1.51404]
[1732464248296,0.03236196,3303.0,3302.8,1.51383]
[1732464248740,0.03236196,3303.0,3302.2,1.51412]
[1732464248741,0.03236196,3303.0,3302.9,1.51382]
[1732464249441,0.03236196,3303.0,3302.1,1.51415]
[1732464249442,3.83656196,3303.0,3302.1,1.51415]
[1732464249598,3.02764,3302.9,3302.2,0.451415]
[1732464249804,0.80896196,3303.0,3301.7,0.151439]
[1732464250005,0.80896196,3303.0,3301.6,1.51438]
[1732464250006,3.02819,3302.4,3301.6,1.51438]
[1732464250239,3.02819,3302.4,3300.9,1.5147]
[1732464250240,3.02869,3301.8,3300.9,1.5147]
[1732464250439,0.7766,3302.1,3300.5,1.5149]
[1732464250606,0.7766,3301.7,3300.2,0.7644]
[1732464250803,3.02898,3301.5,3300.6,1.51483]
[1732464251032,0.7766,3301.7,3300.9,1.51473]
[1732464251247,0.03354356,3301.4,3301.1,1.51464]
[1732464251450,3.02919,3301.3,3300.5,1.51491]
[1732464251742,3.02919,3301.3,3300.2,0.7644]
[1732464251743,0.03354356,3301.3,3300.8,1.51477]
[1732464251906,0.03354356,3301.3,3300.2,2.27943]
[1732464251907,3.12888077,3301.1,3300.4,1.51494]
[1732464252107,3.12888077,3301.1,3300.5,0.151494]
[1732464252309,0.03352256,3301.0,3300.5,0.151494]
[1732464252509,0.03352256,3301.0,3300.3,1.515]
[1732464252707,0.03352256,3301.0,3300.4,1.51495]
[1732464252946,0.03352256,3301.0,3299.9,1.51519]
[1732464252947,0.03352256,3301.0,3300.5,1.51491]
[1732464253106,0.03352256,3301.0,3300.0,0.227959]
[1732464253304,0.7766,3300.9,3300.0,1.51511]
[1732464253544,0.7766,3300.9,3300.4,1.51492]
[1732464253751,0.7766,3300.9,3300.3,1.51499]
[1732464254044,0.03352256,3300.8,3300.7,1.51483]
[1732464254450,1.16240233,3301.1,3300.7,1.51483]
[1732464254679,0.03240514,3300.8,3300.7,5.82923]
[1732464254952,3.12888077,3302.2,3301.1,1.51464]
[1732464255151,3.12888077,3302.2,3301.1,3.0]
[1732464255306,0.03240514,3302.1,3301.5,3.02886]
[1732464255505,0.03240514,3302.1,3301.7,1.51433]
[1732464255708,0.03240514,3302.1,3301.9,1.51424]
[1732464255943,0.03240514,3302.1,3300.9,1.51473]
[1732464255944,3.02857,3301.9,3300.9,1.51473]
[1732464256119,3.02857,3301.9,3301.1,1.51463]
[1732464256308,0.03240514,3301.8,3301.2,4.51457]
[1732464256508,0.7766,3301.7,3301.0,0.151473]
[1732464256749,3.02965,3300.8,3299.9,0.992368]
[1732464256953,0.7766,3300.7,3299.0,0.7644]
[1732464257160,3.80632,3300.7,3300.0,1.51511]
[1732464257313,3.80632,3300.7,3299.0,0.7644]
[1732464257314,0.03240514,3300.6,3299.0,1.5156]
[1732464257513,0.03240514,3300.6,3300.2,1.51503]
[1732464257715,0.03240514,3300.6,3300.4,1.51492]
[1732464258011,0.03240514,3300.6,3300.4,1.51495]
[1732464258210,3.12888077,3301.1,3300.5,1.51491]
[1732464258514,3.12888077,3301.1,3300.6,1.51486]
[1732464258744,3.12888077,3301.1,3300.7,1.51479]
[1732464258913,3.12888077,3301.1,3300.6,1.51486]
[1732464259113,3.12888077,3301.1,3300.7,1.51482]
[1732464259313,3.12888077,3301.1,3300.8,0.302968]
[1732464259533,3.12888077,3301.1,3300.6,1.51487]
[1732464259738,3.12888077,3301.1,3300.2,1.51504]
[1732464260053,6.15822077,3301.1,3300.3,0.451504]
[1732464260210,3.12888077,3301.1,3300.1,1.5151]
[1732464260413,3.12888077,3301.1,3299.9,1.51519]
[1732464260414,3.12888077,3301.1,3300.8,1.51475]
[1732464260607,3.12888077,3301.1,3301.0,1.51469]
[1732464260808,0.7766,3301.7,3301.4,1.51447]
[1732464261222,3.90548077,3302.2,3301.5,0.151447]
[1732464261432,3.90548077,3302.2,3301.1,3.0]
[1732464261633,3.90548077,3302.2,3301.9,1.51424]
[1732464261833,3.90548077,3302.2,3301.4,1.51446]
[1732464262033,3.90548077,3302.2,3301.0,3.43835547]
[1732464262034,3.12888077,3302.2,3302.1,1.51418]
[1732464262730,0.8036,3303.0,3302.5,1.514]
[1732464263070,0.8036,3303.0,3302.7,1.51387]
[1732464263211,0.149082,3303.1,3302.6,1.51395]
[1732464263415,0.149082,3303.1,3302.9,1.51382]
[1732464263620,0.149082,3303.1,3302.1,0.55]
[1732464263621,0.149082,3303.1,3302.5,1.51399]
[1732464263821,0.149082,3303.1,3302.6,0.151399]
[1732464264154,0.149082,3303.1,3303.0,1.51377]
[1732464264366,0.149082,3303.1,3302.8,0.55]
[1732464264662,0.149082,3303.1,3302.9,3.0]
[1732464264954,0.149082,3303.1,3302.9,0.38241]
[1732464265139,0.149082,3303.1,3302.6,1.51395]
[1732464265341,0.149082,3303.1,3302.9,1.51377]
[1732464265540,0.149082,3303.1,3302.5,3.0]
[1732464265717,0.03238918,3303.0,3302.7,1.51391]
[1732464265913,0.03238918,3303.0,3302.8,0.151391]
[1732464266204,0.03238918,3303.0,3302.8,1.51384]
[1732464266465,0.03238918,3303.0,3302.9,5.06382]
[1732464266752,3.12888077,3304.4,3303.2,0.55]
[1732464267065,3.12888077,3304.4,3303.6,1.51349]
[1732464267221,3.12888077,3304.4,3303.7,1.664789]
[1732464267557,3.12888077,3304.4,3303.8,1.51338]
[1732464268558,2.12888077,3304.4,3303.7,0.151349]
[1732464268858,3.85375,3304.3,3303.3,1.51362]
[1732464269013,3.02656,3304.1,3303.3,1.51362]
[1732464269217,3.02671,3304.0,3303.4,0.151362]
[1732464269446,3.02645,3304.2,3303.3,1.5136]
[1732464269627,3.02656,3304.1,3303.3,1.5136]
[1732464269828,3.85376,3304.3,3303.7,1.51341]
[1732464269829,0.8274,3304.3,3303.7,1.51341]
[1732464270070,0.8274,3304.3,3303.6,1.51349]
[1732464270576,0.8274,3304.3,3303.5,1.51354]
[1732464270852,3.85379,3304.3,3303.5,1.5135]
[1732464271019,3.85379,3304.3,3303.0,0.233791]
[1732464271020,3.02691,3303.7,3303.0,0.233791]
[1732464271219,3.12888077,3303.3,3302.3,1.51406]
[1732464271542,3.12888077,3303.3,3302.4,0.151406]
[1732464271543,3.02777,3302.8,3302.4,0.151406]
[1732464271730,3.12888077,3303.3,3301.2,0.7679]
[1732464271731,3.16672377,3303.3,3301.2,0.7679]
[1732464271949,3.16672377,3303.3,3300.4,1.51493]
[1732464271950,3.12888077,3302.2,3302.1,1.51418]
[1732464273219,3.12888077,3302.2,3301.7,1.51434]
[1732464273220,3.12888077,3302.2,3301.4,1.5145]
[1732464273422,3.16240911,3302.2,3302.1,1.51418]
[1732464273858,0.03352834,3302.2,3302.1,1.817022]
[1732464274019,0.03352834,3302.2,3302.1,2.584922]
[1732464274355,3.12888077,3303.3,3303.2,1.51368]
[1732464274971,3.15998494,3303.3,3303.2,1.665048]
[1732464276056,3.12888077,3303.3,3303.2,1.665048]
[1732464276296,0.8274,3304.3,3303.8,1.51337]
[1732464276420,0.8274,3304.3,3303.2,2.10340347]
[1732464276421,0.8274,3304.3,3303.9,1.51335]
[1732464276747,0.8274,3304.3,3303.3,0.21034035]
[1732464276947,3.12888077,3304.4,3303.9,1.51332]
[1732464277136,3.12888077,3304.4,3304.1,1.51323]
[1732464277332,3.12888077,3304.4,3304.0,0.151332]
[1732464277567,3.12888077,3304.4,3304.1,1.51323]
[1732464277751,3.12888077,3304.4,3304.2,1.51322]
[1732464278056,3.12888077,3304.4,3304.1,1.51327]
[1732464278240,3.12888077,3304.4,3303.7,1.51344]
[1732464278418,3.12888077,3304.4,3303.7,1.5134]
[1732464278624,3.12888077,3304.4,3303.5,1.51351]
[1732464278625,6.15522077,3304.4,3303.5,1.51351]
[1732464278824,3.12888077,3304.4,3303.6,1.741631]
[1732464279030,3.12888077,3304.4,3303.8,1.51337]
[1732464279249,3.12888077,3304.4,3304.0,1.51328]
[1732464279616,3.12888077,3304.4,3303.4,3.0]
[1732464279617,3.12888077,3304.4,3303.4,4.51355]
[1732464279859,3.12888077,3304.4,3304.1,1.51323]
[1732464280020,3.12888077,3304.4,3303.4,1.51358]
[1732464280216,3.02635,3304.3,3303.6,1.51349]
[1732464280429,3.02645,3304.2,3303.7,0.151349]
[1732464280630,3.02635,3304.3,3303.4,1.51358]
[1732464280849,3.12888077,3304.4,3303.2,1.51366]
[1732464281065,3.02652,3304.2,3303.5,1.51354]
[1732464281388,3.12888077,3304.4,3303.3,4.81633]
[1732464281389,3.0266,3304.1,3303.3,4.81633]
[1732464281541,3.02661,3304.1,3303.4,0.663273]
[1732464281736,0.03175498,3304.0,3303.5,1.81625]
[1732464281981,3.12888077,3304.4,3303.6,0.181625]
[1732464282278,0.03175498,3303.9,3303.8,1.81606]
[1732464282435,3.12888077,3304.4,3303.8,1.81606]
[1732464282639,0.03175498,3303.9,3303.8,1.81606]
[1732464282839,3.02636,3304.3,3303.8,0.363223]
[1732464283036,0.03175498,3303.9,3303.8,0.363223]
[1732464283240,3.12888077,3304.4,3303.8,2.179253]
[1732464283443,3.12888077,3304.4,3304.0,1.81597]
[1732464283641,3.12888077,3304.4,3303.9,0.2179253]
[1732464283842,3.12888077,3304.4,3303.9,2.0339453]
[1732464284075,3.12888077,3304.4,3303.9,1.81602]
[1732464284456,3.12888077,3304.4,3303.8,1.81608]
[1732464284658,3.12888077,3304.4,3303.1,3.0]
[1732464284950,3.12888077,3304.4,3304.3,1.81581]
[1732464285371,3.12888077,3304.4,3304.0,1.81592]
[1732464285551,3.12888077,3304.4,3303.6,1.81615]
[1732464285552,3.12888077,3304.4,3303.4,3.766]
[1732464285864,3.12888077,3304.4,3304.0,1.81593]
[1732464286074,0.03141201,3304.3,3304.1,1.997513]
[1732464286246,0.03141201,3304.3,3304.2,1.81587]
[1732464286448,0.03141201,3304.3,3304.1,0.181593]
[1732464286877,0.03141201,3304.3,3304.1,1.81591]
[1732464287057,0.03141201,3304.3,3304.0,1.81597]
[1732464287259,3.0261,3304.6,3304.0,1.81597]
[1732464287546,3.0261,3304.6,3304.1,0.181597]
[1732464287843,3.05759201,3304.5,3303.5,3.0]
[1732464288087,3.02628,3304.4,3303.6,2.11617]
[1732464288291,3.02637,3304.3,3303.6,1.81617]
[1732464288587,0.03146975,3304.3,3303.7,3.481617]
[1732464288788,3.02619,3304.5,3303.8,1.81605]
[1732464289045,3.02611,3304.6,3303.8,1.81605]
[1732464289046,0.03146975,3304.2,3303.9,0.481605]
[1732464289340,3.02611,3304.6,3303.9,1.81603]
[1732464289636,0.03146975,3304.5,3304.2,1.81586]
[1732464289804,0.03146975,3304.5,3304.3,1.8158]
[1732464290006,3.02609,3304.6,3304.0,1.81595]
[1732464290191,6.15482077,3304.8,3304.0,1.81595]
[1732464290192,0.03146975,3304.4,3304.0,1.81595]
[1732464290398,0.03142776,3304.5,3304.1,0.181595]
[1732464290594,6.15482077,3304.8,3304.1,0.181595]
[1732464290595,3.12888077,3304.8,3304.2,1.81587]
[1732464290842,0.03142776,3304.4,3304.3,0.1997465]
[1732464290992,6.15484077,3304.8,3304.3,2.0155565]
[1732464290993,3.12888077,3304.8,3304.3,2.0155565]
[1732464291194,0.03148025,3304.4,3304.3,2.0155565]
[1732464291428,3.12888077,3304.8,3304.3,0.1997465]
[1732464291700,0.03148025,3304.4,3304.3,0.1997465]
[1732464291918,3.12888077,3304.8,3303.7,1.81613]
[1732464292122,3.02658,3304.1,3303.4,4.81627]
[1732464292321,3.02658,3304.1,3303.3,1.81634]
[1732464292322,3.12888077,3303.7,3303.1,3.0]
[1732464292524,3.12888077,3303.7,3303.0,5.58829]
[1732464292525,0.03148025,3303.6,3303.3,1.81631]
[1732464292742,0.03148025,3303.6,3303.4,0.181631]
[1732464293227,0.03148025,3303.6,3303.4,1.997931]
[1732464293396,0.03148025,3303.6,3303.4,1.81628]
[1732464294024,0.03148025,3303.6,3303.5,1.81625]
[1732464294199,3.12888077,3303.7,3303.6,1.8162]
[1732464298447,3.12888077,3303.7,3303.6,5.588]
[1732464298747,0.7686,3304.6,3303.6,6.628425]
[1732464298909,3.89748077,3305.0,3304.5,1.81567]
[1732464299244,6.92322077,3305.0,3304.3,1.81579]
[1732464299417,0.03048611,3304.9,3304.3,1.81579]
[1732464299750,0.03048611,3304.9,3303.8,0.6931725]
[1732464299957,0.03048611,3304.9,3304.7,1.81558]
[1732464300552,3.05634611,3304.9,3304.1,1.81589]
[1732464300698,0.03048611,3304.9,3304.3,1.8158]
[1732464300899,3.02619,3304.5,3304.1,0.181589]
[1732464301139,0.7686,3304.4,3303.4,3.0]
[1732464301374,0.79928568,3304.4,3303.8,1.81605]
[1732464301507,0.79928568,3304.4,3304.2,1.81582]
[1732464301706,0.03068568,3304.4,3304.3,1.81581]
[1732464301904,0.8216,3304.9,3304.3,0.363163]
[1732464302105,3.02608,3304.7,3303.8,1.81604]
[1732464302358,3.12888077,3303.9,3303.8,1.81609]
[1732464302639,3.12888077,3303.9,3303.8,1.997699]
[1732464302849,3.15948768,3303.9,3303.8,4.997699]
[1732464303016,3.12888077,3303.9,3303.8,4.997699]
[1732464303342,0.8216,3304.9,3304.8,1.81554]
[1732464303546,3.12888077,3304.8,3304.5,1.81565]
[1732464303905,3.12888077,3304.8,3304.4,1.81574]
[1732464304115,0.03067519,3304.7,3304.4,1.997314]
[1732464304432,3.12888077,3304.8,3304.4,1.997294]
[1732464304741,0.03075921,3304.6,3304.4,0.181574]
[1732464304905,0.03075921,3304.6,3303.8,1.997679]
[1732464304906,3.02613,3304.6,3303.8,1.997679]
[1732464305102,3.05699921,3304.5,3303.8,1.997679]
[1732464305330,0.03075921,3304.5,3303.9,0.4997679]
[1732464305537,0.03075921,3304.5,3303.9,1.81599]
[1732464305741,0.03075921,3304.5,3304.0,1.81595]
[1732464305949,6.15484077,3304.8,3304.1,1.81591]
[1732464306111,0.03073295,3304.4,3304.0,0.4997599]
[1732464306445,3.84797,3304.3,3303.5,3.63243]
[1732464306627,3.84797,3304.3,3303.6,4.81617]
[1732464306628,0.85233295,3304.3,3303.6,4.81617]
[1732464306811,3.12888077,3303.7,3303.5,0.37674]
[1732464307018,3.12888077,3303.7,3303.6,0.2193]
[1732464307217,3.12888077,3303.7,3303.3,1.81633]
[1732464307218,0.03064893,3303.6,3303.3,1.81633]
[1732464307454,0.03064893,3303.6,3303.1,1.81646]
[1732464307681,0.03064893,3303.6,3303.2,0.181646]
[1732464307977,0.7982,3303.5,3302.4,1.81683]
[1732464308150,3.12888077,3302.5,3302.4,1.81685]
[1732464308478,3.12888077,3302.5,3302.2,2.63975]
[1732464308479,3.12888077,3302.5,3302.0,1.81702]
[1732464308683,3.15947193,3302.5,3302.3,1.81691]
[1732464308843,2.01331002,3302.5,3302.4,1.81686]
[1732464309048,2.01331002,3302.5,3302.4,2.30404255]
[1732464309381,1.98271886,3302.5,3302.4,2.30404255]
[1732464309544,2.01331002,3302.5,3302.4,2.30404255]
[1732464309951,2.01331002,3302.5,3302.4,2.71489802]
[1732464310155,2.01331002,3302.5,3302.4,2.30404255]
[1732464310372,2.01331002,3302.5,3302.4,2.71489802]
[1732464310675,2.01331002,3302.5,3302.4,2.30404255]
[1732464310889,2.01331002,3302.5,3302.4,5.71489802]
[1732464311408,1.98271886,3302.5,3302.4,5.71489802]
[1732464312744,2.01331002,3302.5,3302.4,2.30404255]
[1732464313139,2.01331002,3302.5,3302.4,0.48718255]
[1732464313357,2.01331002,3302.5,3301.9,0.181714]
[1732464313577,2.01331002,3302.5,3301.3,0.8272]
[1732464313578,2.01331002,3302.5,3301.4,1.81741]
[1732464313787,2.01331002,3302.5,3301.8,1.81715]
[1732464314078,1.98271886,3302.5,3302.0,1.81703]
[1732464314241,3.02811,3302.4,3301.9,0.181715]
[1732464314441,3.02857,3301.9,3301.3,1.81745]
[1732464315051,0.03059116,3301.8,3300.9,0.8272]